[Event "Late-Titled-Tuesday-Blitz-April-16-2024"]
[Site "Chess.com"]
[Date "2024.04.16"]
[Round "11"]
[White "KorolDimitriy75"]
[Black "Slovineanu"]
[Result "0-1"]
[WhiteElo "2316"]
[BlackElo "2474"]
[TimeControl "180+1"]
[EndTime "16:05:34 PDT"]
[Termination "Slovineanu won on time"]

1. d4 {[%clk 0:03:00.9]} 1... Nf6 {[%clk 0:02:58.8]} 2. c4 {[%clk 0:03:01.5]}
2... e6 {[%clk 0:02:59]} 3. Nc3 {[%clk 0:03:02.1]} 3... d5 {[%clk 0:02:59.4]} 4.
cxd5 {[%clk 0:03:02.9]} 4... Nxd5 {[%clk 0:02:59.4]} 5. e4 {[%clk 0:03:02.1]}
5... Nxc3 {[%clk 0:02:58.9]} 6. bxc3 {[%clk 0:03:03]} 6... c5 {[%clk 0:02:58.9]}
7. Nf3 {[%clk 0:03:03]} 7... cxd4 {[%clk 0:02:58.9]} 8. cxd4 {[%clk 0:03:03.9]}
8... Bb4+ {[%clk 0:02:58.9]} 9. Bd2 {[%clk 0:03:04.1]} 9... Bxd2+ {[%clk
0:02:59.5]} 10. Qxd2 {[%clk 0:03:05]} 10... O-O {[%clk 0:02:59.8]} 11. Bc4
{[%clk 0:02:59.9]} 11... Nd7 {[%clk 0:02:59]} 12. O-O {[%clk 0:02:59.5]} 12...
b6 {[%clk 0:02:59.3]} 13. d5 {[%clk 0:02:46.2]} 13... Nc5 {[%clk 0:02:58.5]} 14.
Qf4 {[%clk 0:02:37.7]} 14... Bb7 {[%clk 0:02:21]} 15. Rad1 {[%clk 0:02:31.1]}
15... exd5 {[%clk 0:02:05.6]} 16. exd5 {[%clk 0:02:28]} 16... Qf6 {[%clk
0:02:03.8]} 17. Qxf6 {[%clk 0:02:11.3]} 17... gxf6 {[%clk 0:02:03.2]} 18. Rfe1
{[%clk 0:01:58]} 18... Rfe8 {[%clk 0:02:01.7]} 19. Nd4 {[%clk 0:01:55]} 19...
Rad8 {[%clk 0:01:34.7]} 20. Nf5 {[%clk 0:01:45.8]} 20... Rxe1+ {[%clk
0:01:32.7]} 21. Rxe1 {[%clk 0:01:46.7]} 21... Kf8 {[%clk 0:01:31.5]} 22. d6
{[%clk 0:01:40.9]} 22... Ne4 {[%clk 0:01:25.3]} 23. Rd1 {[%clk 0:01:06.8]} 23...
Bc8 {[%clk 0:01:18.1]} 24. Nh6 {[%clk 0:00:17.4]} 24... Rxd6 {[%clk 0:01:16.6]}
25. Re1 {[%clk 0:00:14.8]} 25... Rd4 {[%clk 0:01:14.9]} 26. Bb5 {[%clk
0:00:13.4]} 26... Be6 {[%clk 0:01:09]} 27. f3 {[%clk 0:00:12.6]} 27... Nc3
{[%clk 0:01:04.5]} 28. a4 {[%clk 0:00:11.4]} 28... Nxa4 {[%clk 0:00:57.5]} 29.
Ra1 {[%clk 0:00:10.1]} 29... Nc3 {[%clk 0:00:55.1]} 30. Bf1 {[%clk 0:00:08.3]}
30... a5 {[%clk 0:00:53.4]} 31. h3 {[%clk 0:00:06.8]} 31... Rd1 {[%clk
0:00:48.6]} 32. Ra3 {[%clk 0:00:04.7]} 32... Nb1 {[%clk 0:00:41.7]} 33. Re3
{[%clk 0:00:03.7]} 33... Nd2 {[%clk 0:00:39.3]} 34. Kf2 {[%clk 0:00:03.3]} 34...
Nxf1 {[%clk 0:00:36.5]} 35. Rc3 {[%clk 0:00:02.9]} 35... b5 {[%clk 0:00:23.2]}
36. g4 {[%clk 0:00:02]} 36... b4 {[%clk 0:00:22.4]} 37. Rc7 {[%clk 0:00:01.6]}
37... b3 {[%clk 0:00:19.4]} 0-1

[Event "Late-Titled-Tuesday-Blitz-April-16-2024"]
[Site "Chess.com"]
[Date "2024.04.16"]
[Round "11"]
[White "Alexei_Gubajdullin"]
[Black "KNVB"]
[Result "1-0"]
[WhiteElo "2641"]
[BlackElo "2766"]
[TimeControl "180+1"]
[EndTime "16:05:37 PDT"]
[Termination "Alexei_Gubajdullin won on time"]

1. d4 {[%clk 0:03:00.9]} 1... e5 {[%clk 0:03:00.1]} 2. dxe5 {[%clk 0:03:00.5]}
2... Nc6 {[%clk 0:03:00.5]} 3. Nf3 {[%clk 0:03:00.6]} 3... Qe7 {[%clk
0:03:00.9]} 4. Bg5 {[%clk 0:02:45.7]} 4... Qb4+ {[%clk 0:03:00.9]} 5. Nc3 {[%clk
0:02:45.5]} 5... Qxb2 {[%clk 0:03:01.8]} 6. Bd2 {[%clk 0:02:45.2]} 6... Bb4
{[%clk 0:03:02.5]} 7. Rb1 {[%clk 0:02:43.7]} 7... Qxc3 {[%clk 0:03:03.1]} 8.
Bxc3 {[%clk 0:02:42.8]} 8... Bxc3+ {[%clk 0:03:04]} 9. Nd2 {[%clk 0:02:43]} 9...
Nxe5 {[%clk 0:03:04.8]} 10. Rb3 {[%clk 0:02:42.4]} 10... Ba5 {[%clk 0:03:05]}
11. Re3 {[%clk 0:02:19.9]} 11... d6 {[%clk 0:02:55.3]} 12. f4 {[%clk 0:02:18.1]}
12... Bb6 {[%clk 0:02:54]} 13. Re4 {[%clk 0:02:09.6]} 13... f5 {[%clk
0:02:53.9]} 14. fxe5 {[%clk 0:02:03.1]} 14... fxe4 {[%clk 0:02:54.8]} 15. Nxe4
{[%clk 0:02:02.8]} 15... Bf5 {[%clk 0:02:55.3]} 16. Qd5 {[%clk 0:02:01.9]} 16...
O-O-O {[%clk 0:02:41.2]} 17. exd6 {[%clk 0:01:59.2]} 17... Bxe4 {[%clk
0:02:41.7]} 18. Qxe4 {[%clk 0:01:55.7]} 18... Nf6 {[%clk 0:02:42]} 19. Qf5+
{[%clk 0:01:42.2]} 19... Kb8 {[%clk 0:02:42.4]} 20. dxc7+ {[%clk 0:01:40]} 20...
Bxc7 {[%clk 0:02:42.6]} 21. g3 {[%clk 0:01:35.2]} 21... Rd5 {[%clk 0:02:41.1]}
22. Qf3 {[%clk 0:01:28.9]} 22... Rhd8 {[%clk 0:02:02.3]} 23. e4 {[%clk
0:01:23.8]} 23... Nxe4 {[%clk 0:01:26]} 24. Bd3 {[%clk 0:01:20.3]} 24... Ba5+
{[%clk 0:00:25.9]} 25. Ke2 {[%clk 0:01:17.9]} 25... Ng5 {[%clk 0:00:08.7]} 26.
Qg4 {[%clk 0:01:00.9]} 26... Re5+ {[%clk 0:00:06.5]} 27. Kd1 {[%clk 0:00:59.7]}
27... Rde8 {[%clk 0:00:02.7]} 28. c3 {[%clk 0:00:53.9]} 28... h5 {[%clk
0:00:03.1]} 29. Qf4 {[%clk 0:00:50.2]} 29... Bc7 {[%clk 0:00:02.4]} 30. Qa4
{[%clk 0:00:44.7]} 30... Nh3 {[%clk 0:00:02]} 31. Kc2 {[%clk 0:00:41.9]} 31...
Nf2 {[%clk 0:00:02.2]} 32. Rb1 {[%clk 0:00:41.4]} 32... Nxd3 {[%clk 0:00:02.3]}
33. Kxd3 {[%clk 0:00:39.6]} 33... Rd8+ {[%clk 0:00:02.8]} 34. Kc2 {[%clk
0:00:38.6]} 34... Re2+ {[%clk 0:00:02.9]} 35. Kb3 {[%clk 0:00:38.9]} 35... a6
{[%clk 0:00:02.2]} 36. Qc4 {[%clk 0:00:33.9]} 36... Rdd2 {[%clk 0:00:02.1]} 37.
Qg8+ {[%clk 0:00:27.7]} 37... Ka7 {[%clk 0:00:02.4]} 38. Qxg7 {[%clk 0:00:27.3]}
38... Bd6 {[%clk 0:00:02.4]} 39. Kc4 {[%clk 0:00:26.7]} 39... Bc7 {[%clk
0:00:01.8]} 40. Qxc7 {[%clk 0:00:25.3]} 40... Re4+ {[%clk 0:00:02.4]} 41. Kb3
{[%clk 0:00:25]} 41... Re6 {[%clk 0:00:01.9]} 42. Qc5+ {[%clk 0:00:24.1]} 42...
Kb8 {[%clk 0:00:01.3]} 43. Ka3 {[%clk 0:00:23.3]} 1-0

[Event "Late-Titled-Tuesday-Blitz-April-16-2024"]
[Site "Chess.com"]
[Date "2024.04.16"]
[Round "11"]
[White "ekurtz"]
[Black "zverr1"]
[Result "0-1"]
[WhiteElo "2608"]
[BlackElo "2521"]
[TimeControl "180+1"]
[EndTime "16:05:38 PDT"]
[Termination "zverr1 won by resignation"]

1. Nf3 {[%clk 0:03:00.9]} 1... g6 {[%clk 0:02:59.7]} 2. g3 {[%clk 0:02:56.5]}
2... Bg7 {[%clk 0:02:59.6]} 3. c4 {[%clk 0:02:56.1]} 3... Nf6 {[%clk 0:02:59]}
4. Nc3 {[%clk 0:02:56.3]} 4... d5 {[%clk 0:02:54]} 5. cxd5 {[%clk 0:02:55.9]}
5... Nxd5 {[%clk 0:02:54.9]} 6. Bg2 {[%clk 0:02:56.3]} 6... c6 {[%clk
0:02:54.8]} 7. O-O {[%clk 0:02:55.6]} 7... O-O {[%clk 0:02:55.3]} 8. Qc2 {[%clk
0:02:50.7]} 8... a5 {[%clk 0:02:48.3]} 9. d3 {[%clk 0:02:50.9]} 9... Bg4 {[%clk
0:02:43.4]} 10. Bd2 {[%clk 0:02:50.5]} 10... Na6 {[%clk 0:02:37.4]} 11. a3
{[%clk 0:02:49.9]} 11... Nxc3 {[%clk 0:02:32.4]} 12. bxc3 {[%clk 0:02:46]} 12...
Nc5 {[%clk 0:02:26.7]} 13. a4 {[%clk 0:02:43.7]} 13... Ra6 {[%clk 0:02:11.2]}
14. Rab1 {[%clk 0:02:42.9]} 14... Rb6 {[%clk 0:02:10.2]} 15. Rxb6 {[%clk
0:02:41.5]} 15... Qxb6 {[%clk 0:02:11.1]} 16. Rb1 {[%clk 0:02:39.5]} 16... Qc7
{[%clk 0:02:08.7]} 17. Be3 {[%clk 0:02:35.2]} 17... Bxf3 {[%clk 0:01:52.8]} 18.
Bxf3 {[%clk 0:02:33.3]} 18... Ne6 {[%clk 0:01:50.3]} 19. Qb3 {[%clk 0:02:26.4]}
19... Rb8 {[%clk 0:01:45.5]} 20. Ba7 {[%clk 0:02:15.2]} 20... Ra8 {[%clk
0:01:36.7]} 21. Qxb7 {[%clk 0:02:14.8]} 21... Rxa7 {[%clk 0:01:36.3]} 22. Qxc7
{[%clk 0:02:10.8]} 22... Rxc7 {[%clk 0:01:33.9]} 23. d4 {[%clk 0:02:11.5]} 23...
c5 {[%clk 0:01:11.5]} 24. e3 {[%clk 0:02:10.5]} 24... cxd4 {[%clk 0:01:11.1]}
25. cxd4 {[%clk 0:02:11.4]} 25... h6 {[%clk 0:00:56.3]} 26. Rb5 {[%clk 0:02:10]}
26... Ra7 {[%clk 0:00:52.7]} 27. h4 {[%clk 0:02:06.3]} 27... Nc7 {[%clk
0:00:43.9]} 28. Rb8+ {[%clk 0:02:05.7]} 28... Kh7 {[%clk 0:00:43.7]} 29. Be2
{[%clk 0:01:59.5]} 29... e6 {[%clk 0:00:38]} 30. Kg2 {[%clk 0:01:58.2]} 30...
Nd5 {[%clk 0:00:37.5]} 31. Rc8 {[%clk 0:01:53.4]} 31... Nb6 {[%clk 0:00:36.1]}
32. Rb8 {[%clk 0:01:49.1]} 32... Nxa4 {[%clk 0:00:35.8]} 33. Rb3 {[%clk
0:01:46.9]} 33... Bf8 {[%clk 0:00:33.4]} 34. Bb5 {[%clk 0:01:46.3]} 34... Nb6
{[%clk 0:00:30.3]} 35. h5 {[%clk 0:01:46.7]} 35... Nd5 {[%clk 0:00:25]} 36.
hxg6+ {[%clk 0:01:46]} 36... fxg6 {[%clk 0:00:25.1]} 37. Ba4 {[%clk 0:01:46.4]}
37... Bb4 {[%clk 0:00:24.1]} 38. Rb2 {[%clk 0:01:42.4]} 38... Nc3 {[%clk
0:00:22.8]} 39. Bb3 {[%clk 0:01:42.9]} 39... Nd5 {[%clk 0:00:18.6]} 40. e4
{[%clk 0:01:41]} 40... Nc7 {[%clk 0:00:16.9]} 41. Rc2 {[%clk 0:01:39.4]} 41...
Kg7 {[%clk 0:00:14.2]} 42. Rc6 {[%clk 0:01:35.7]} 42... Nb5 {[%clk 0:00:13.5]}
43. Rc4 {[%clk 0:01:32.5]} 43... Na3 {[%clk 0:00:10.9]} 44. Rc8 {[%clk
0:01:30.6]} 44... a4 {[%clk 0:00:10.6]} 45. Bxe6 {[%clk 0:01:29.3]} 45... Nb5
{[%clk 0:00:09.5]} 46. Rc4 {[%clk 0:01:26]} 46... Be7 {[%clk 0:00:07.8]} 47. Rc1
{[%clk 0:01:10.5]} 47... a3 {[%clk 0:00:07.9]} 48. Ba2 {[%clk 0:01:09]} 48...
Nxd4 {[%clk 0:00:07.9]} 49. Rd1 {[%clk 0:01:09]} 49... Nc2 {[%clk 0:00:07.3]}
50. e5 {[%clk 0:01:05.5]} 50... Nb4 {[%clk 0:00:07.3]} 51. Bb3 {[%clk
0:01:05.6]} 51... a2 {[%clk 0:00:07.5]} 52. Ra1 {[%clk 0:01:04.8]} 52... Bc5
{[%clk 0:00:07.9]} 53. Bxa2 {[%clk 0:01:04.3]} 53... Rxa2 {[%clk 0:00:08.2]} 54.
Rc1 {[%clk 0:01:04.9]} 54... Bd4 {[%clk 0:00:07.8]} 55. Rc4 {[%clk 0:01:04.2]}
55... Rxf2+ {[%clk 0:00:05.3]} 56. Kh3 {[%clk 0:01:04.6]} 56... Bxe5 {[%clk
0:00:04.7]} 57. Rxb4 {[%clk 0:01:04.6]} 57... Rf3 {[%clk 0:00:05]} 58. Rg4
{[%clk 0:01:04.6]} 58... Rxg3+ {[%clk 0:00:05.2]} 59. Rxg3 {[%clk 0:01:04.5]}
59... Bxg3 {[%clk 0:00:06.1]} 60. Kxg3 {[%clk 0:01:04.2]} 60... Kf6 {[%clk
0:00:07]} 61. Kh3 {[%clk 0:01:05.1]} 61... Kg5 {[%clk 0:00:07.9]} 62. Kg3 {[%clk
0:01:06]} 62... h5 {[%clk 0:00:08.1]} 63. Kh3 {[%clk 0:01:06.9]} 63... h4 {[%clk
0:00:09]} 64. Kg2 {[%clk 0:01:07.4]} 64... Kh5 {[%clk 0:00:09.9]} 65. Kh3 {[%clk
0:01:08.3]} 65... g5 {[%clk 0:00:10.8]} 66. Kg2 {[%clk 0:01:09.2]} 66... g4
{[%clk 0:00:11.7]} 67. Kh2 {[%clk 0:01:09.9]} 67... Kg5 {[%clk 0:00:12.6]} 68.
Kg2 {[%clk 0:01:10.7]} 68... Kf4 {[%clk 0:00:13.5]} 69. Kh2 {[%clk 0:01:11.6]}
69... g3+ {[%clk 0:00:14.4]} 70. Kg2 {[%clk 0:01:12.5]} 70... Kg4 {[%clk
0:00:15]} 71. Kh1 {[%clk 0:01:13.4]} 71... h3 {[%clk 0:00:15.9]} 72. Kg1 {[%clk
0:01:14.3]} 72... Kf3 {[%clk 0:00:16.8]} 73. Kh1 {[%clk 0:01:15.2]} 73... g2+
{[%clk 0:00:17.1]} 74. Kg1 {[%clk 0:01:16.1]} 74... h2+ {[%clk 0:00:17.3]} 75.
Kxh2 {[%clk 0:01:16.3]} 75... Kf2 {[%clk 0:00:18.2]} 76. Kh3 {[%clk 0:01:16.8]}
76... g1=Q {[%clk 0:00:19.1]} 77. Kh4 {[%clk 0:01:17.7]} 77... Qg6 {[%clk
0:00:19.7]} 0-1

[Event "Late-Titled-Tuesday-Blitz-April-16-2024"]
[Site "Chess.com"]
[Date "2024.04.16"]
[Round "11"]
[White "Eloist"]
[Black "Kostukov_Alex"]
[Result "1-0"]
[WhiteElo "2461"]
[BlackElo "2330"]
[TimeControl "180+1"]
[EndTime "16:05:42 PDT"]
[Termination "Eloist won by resignation"]

1. e4 {[%clk 0:02:59.8]} 1... c5 {[%clk 0:02:59.8]} 2. Nf3 {[%clk 0:02:59.8]}
2... g6 {[%clk 0:03:00.2]} 3. c3 {[%clk 0:02:59.5]} 3... Bg7 {[%clk 0:02:59.8]}
4. d4 {[%clk 0:02:59.5]} 4... cxd4 {[%clk 0:03:00.7]} 5. cxd4 {[%clk 0:03:00]}
5... d5 {[%clk 0:03:01.3]} 6. e5 {[%clk 0:03:00.2]} 6... Nc6 {[%clk 0:03:01.1]}
7. Bb5 {[%clk 0:02:59.7]} 7... Bg4 {[%clk 0:03:00.6]} 8. Bxc6+ {[%clk 0:02:54]}
8... bxc6 {[%clk 0:02:59.7]} 9. Nbd2 {[%clk 0:02:53.4]} 9... Nh6 {[%clk
0:02:59.1]} 10. h3 {[%clk 0:02:50.6]} 10... Bxf3 {[%clk 0:02:59.1]} 11. Nxf3
{[%clk 0:02:49.3]} 11... O-O {[%clk 0:02:59.2]} 12. O-O {[%clk 0:02:48]} 12...
Nf5 {[%clk 0:02:59.1]} 13. g4 {[%clk 0:02:42]} 13... Nh6 {[%clk 0:02:57.7]} 14.
Be3 {[%clk 0:02:36.8]} 14... f6 {[%clk 0:02:56.1]} 15. e6 {[%clk 0:02:28]} 15...
Qd6 {[%clk 0:02:35.9]} 16. Qd2 {[%clk 0:02:19.2]} 16... g5 {[%clk 0:02:34.9]}
17. Rfe1 {[%clk 0:02:06.5]} 17... Kh8 {[%clk 0:02:09.2]} 18. Nh2 {[%clk
0:02:01.7]} 18... Ng8 {[%clk 0:01:54]} 19. Rac1 {[%clk 0:01:43.3]} 19... Qxe6
{[%clk 0:01:52]} 20. Bxg5 {[%clk 0:01:40.4]} 20... Qd7 {[%clk 0:01:49.7]} 21.
Bf4 {[%clk 0:01:30.8]} 21... Rae8 {[%clk 0:01:45.5]} 22. Qc3 {[%clk 0:01:24.5]}
22... e5 {[%clk 0:01:43.5]} 23. dxe5 {[%clk 0:01:22.4]} 23... fxe5 {[%clk
0:01:40.9]} 24. Bxe5 {[%clk 0:01:18.8]} 24... Rxe5 {[%clk 0:01:40.4]} 25. Rxe5
{[%clk 0:01:17.8]} 25... Qf7 {[%clk 0:01:26.4]} 26. Qg3 {[%clk 0:00:54.6]} 26...
Ne7 {[%clk 0:00:53.3]} 27. Re3 {[%clk 0:00:42.1]} 27... Bxb2 {[%clk 0:00:51.4]}
28. Rce1 {[%clk 0:00:39]} 28... Ng6 {[%clk 0:00:41.1]} 29. Nf3 {[%clk
0:00:30.4]} 29... Bg7 {[%clk 0:00:34.9]} 30. Ng5 {[%clk 0:00:29.1]} 30... Qf6
{[%clk 0:00:32.8]} 31. Ne6 {[%clk 0:00:25.7]} 31... Rf7 {[%clk 0:00:24.1]} 32.
f4 {[%clk 0:00:20.5]} 32... Nxf4 {[%clk 0:00:20.8]} 33. Nxf4 {[%clk 0:00:13.7]}
33... Qxf4 {[%clk 0:00:16.6]} 34. Re8+ {[%clk 0:00:13.6]} 34... Bf8 {[%clk
0:00:16.8]} 35. Qxf4 {[%clk 0:00:12.1]} 35... Rxf4 {[%clk 0:00:16.8]} 36. Rf1
{[%clk 0:00:12.3]} 36... Rxf1+ {[%clk 0:00:14.3]} 37. Kxf1 {[%clk 0:00:13.2]}
37... Kg7 {[%clk 0:00:14.7]} 38. Rc8 {[%clk 0:00:13.5]} 38... c5 {[%clk
0:00:10.1]} 39. Rc7+ {[%clk 0:00:12.4]} 39... Kg6 {[%clk 0:00:10.6]} 40. Rxa7
{[%clk 0:00:10.5]} 40... c4 {[%clk 0:00:11.2]} 41. Rd7 {[%clk 0:00:10.2]} 1-0

[Event "Late-Titled-Tuesday-Blitz-April-16-2024"]
[Site "Chess.com"]
[Date "2024.04.16"]
[Round "11"]
[White "GothamChess"]
[Black "ChessBrainiacOnTwitch"]
[Result "1-0"]
[WhiteElo "2713"]
[BlackElo "2816"]
[TimeControl "180+1"]
[EndTime "16:05:50 PDT"]
[Termination "GothamChess won by resignation"]

1. e4 {[%clk 0:03:00.9]} 1... c5 {[%clk 0:02:57.7]} 2. Nc3 {[%clk 0:03:00.5]}
2... d6 {[%clk 0:02:57.6]} 3. d4 {[%clk 0:03:00.3]} 3... cxd4 {[%clk 0:02:57.4]}
4. Qxd4 {[%clk 0:03:01.2]} 4... Nc6 {[%clk 0:02:57.3]} 5. Qd2 {[%clk 0:03:01.8]}
5... g6 {[%clk 0:02:55.7]} 6. b3 {[%clk 0:03:02]} 6... Bh6 {[%clk 0:02:55.9]} 7.
f4 {[%clk 0:03:02.2]} 7... Nf6 {[%clk 0:02:56.7]} 8. Bb2 {[%clk 0:03:02.3]} 8...
O-O {[%clk 0:02:57]} 9. O-O-O {[%clk 0:03:02.4]} 9... e5 {[%clk 0:02:57.7]} 10.
g3 {[%clk 0:03:03]} 10... Bg4 {[%clk 0:02:56.4]} 11. Nge2 {[%clk 0:03:01.4]}
11... Nd4 {[%clk 0:02:51]} 12. Kb1 {[%clk 0:02:57.5]} 12... Rc8 {[%clk
0:02:49.5]} 13. Nxd4 {[%clk 0:02:39.4]} 13... Bxd1 {[%clk 0:02:44.3]} 14. Qxd1
{[%clk 0:02:35.1]} 14... exd4 {[%clk 0:02:41.1]} 15. Qxd4 {[%clk 0:02:36]} 15...
Bg7 {[%clk 0:02:38.8]} 16. Bc4 {[%clk 0:02:06.9]} 16... a6 {[%clk 0:02:28.1]}
17. a4 {[%clk 0:02:02.8]} 17... Re8 {[%clk 0:01:48.9]} 18. Nd5 {[%clk
0:01:42.8]} 18... Nh5 {[%clk 0:01:48.1]} 19. Qd3 {[%clk 0:01:37.3]} 19... Bxb2
{[%clk 0:01:45.1]} 20. Kxb2 {[%clk 0:01:38.2]} 20... Nf6 {[%clk 0:01:42.6]} 21.
Qd4 {[%clk 0:01:22.8]} 21... Nxd5 {[%clk 0:01:32.8]} 22. Bxd5 {[%clk 0:01:18.4]}
22... b5 {[%clk 0:01:31.7]} 23. h4 {[%clk 0:01:09]} 23... Qc7 {[%clk 0:01:30.8]}
24. Rh2 {[%clk 0:01:00.3]} 24... bxa4 {[%clk 0:01:26.6]} 25. bxa4 {[%clk
0:00:55.4]} 25... Rb8+ {[%clk 0:01:24.7]} 26. Bb3 {[%clk 0:00:53.1]} 26... Qc5
{[%clk 0:01:15.2]} 27. Rd2 {[%clk 0:00:51]} 27... Qb4 {[%clk 0:00:53]} 28. Qf6
{[%clk 0:00:31.5]} 28... Rb7 {[%clk 0:00:48.4]} 29. Rxd6 {[%clk 0:00:25.1]}
29... Qxe4 {[%clk 0:00:48]} 30. Rxa6 {[%clk 0:00:23.1]} 30... Reb8 {[%clk
0:00:34.6]} 31. a5 {[%clk 0:00:11.3]} 31... Qe2 {[%clk 0:00:29.3]} 32. Rb6
{[%clk 0:00:10.4]} 32... Qe8 {[%clk 0:00:19.9]} 33. h5 {[%clk 0:00:06.1]} 33...
Rxb6 {[%clk 0:00:18.4]} 34. axb6 {[%clk 0:00:07]} 34... gxh5 {[%clk 0:00:06.2]}
35. Qg5+ {[%clk 0:00:04]} 35... Kf8 {[%clk 0:00:06.9]} 36. Qh6+ {[%clk
0:00:03.9]} 36... Ke7 {[%clk 0:00:06]} 37. f5 {[%clk 0:00:02.3]} 37... Qd7
{[%clk 0:00:03.7]} 38. Qg5+ {[%clk 0:00:01.9]} 38... Kf8 {[%clk 0:00:02.5]} 39.
Qf6 {[%clk 0:00:02]} 39... Ke8 {[%clk 0:00:02]} 40. Qh8+ {[%clk 0:00:02.2]}
40... Ke7 {[%clk 0:00:02.6]} 41. f6+ {[%clk 0:00:02.7]} 41... Kd6 {[%clk
0:00:01.9]} 42. Qxb8+ {[%clk 0:00:03.6]} 42... Kc6 {[%clk 0:00:02.6]} 43. Ba4+
{[%clk 0:00:03.7]} 1-0

[Event "Late-Titled-Tuesday-Blitz-April-16-2024"]
[Site "Chess.com"]
[Date "2024.04.16"]
[Round "11"]
[White "Tolyanius"]
[Black "ATM622"]
[Result "0-1"]
[WhiteElo "2633"]
[BlackElo "2488"]
[TimeControl "180+1"]
[EndTime "16:06:02 PDT"]
[Termination "ATM622 won by resignation"]

1. e4 {[%clk 0:03:00.9]} 1... c6 {[%clk 0:02:59.6]} 2. c4 {[%clk 0:03:00.8]}
2... g6 {[%clk 0:02:59.1]} 3. Nc3 {[%clk 0:03:00.5]} 3... Bg7 {[%clk 0:02:59.2]}
4. d4 {[%clk 0:02:55.5]} 4... d6 {[%clk 0:02:58.5]} 5. Be3 {[%clk 0:02:54.7]}
5... Nd7 {[%clk 0:02:58.5]} 6. Qd2 {[%clk 0:02:53.4]} 6... Ngf6 {[%clk
0:02:55.5]} 7. f3 {[%clk 0:02:53.4]} 7... Rb8 {[%clk 0:02:39]} 8. h4 {[%clk
0:02:50.3]} 8... h5 {[%clk 0:02:31.9]} 9. Nh3 {[%clk 0:02:50.6]} 9... a6 {[%clk
0:02:18.4]} 10. Ng5 {[%clk 0:02:37.4]} 10... b5 {[%clk 0:02:16.7]} 11. a3 {[%clk
0:02:36.7]} 11... e5 {[%clk 0:01:53.9]} 12. dxe5 {[%clk 0:02:18.2]} 12... Nxe5
{[%clk 0:01:51.1]} 13. c5 {[%clk 0:02:15.3]} 13... d5 {[%clk 0:01:43.2]} 14.
exd5 {[%clk 0:02:05]} 14... Nxd5 {[%clk 0:01:38.5]} 15. Nxd5 {[%clk 0:01:49.9]}
15... cxd5 {[%clk 0:01:37.4]} 16. Rd1 {[%clk 0:01:41.1]} 16... Bb7 {[%clk
0:01:37.1]} 17. Bd4 {[%clk 0:01:31.3]} 17... O-O {[%clk 0:01:36.1]} 18. Be2
{[%clk 0:01:31.9]} 18... Nc4 {[%clk 0:01:26.1]} 19. Qc3 {[%clk 0:01:10.5]} 19...
Bxd4 {[%clk 0:01:06.1]} 20. Qxd4 {[%clk 0:01:11.4]} 20... Qe7 {[%clk 0:01:02.4]}
21. Kf2 {[%clk 0:01:11.9]} 21... f6 {[%clk 0:00:56.6]} 22. Nh3 {[%clk
0:01:09.8]} 22... Qe5 {[%clk 0:00:56]} 23. Rhe1 {[%clk 0:01:04.3]} 23... Nxb2
{[%clk 0:00:47]} 24. Rd2 {[%clk 0:00:43.4]} 24... Nc4 {[%clk 0:00:46.8]} 25.
Bxc4 {[%clk 0:00:43.4]} 25... Qxd4+ {[%clk 0:00:46]} 26. Rxd4 {[%clk 0:00:44.3]}
26... dxc4 {[%clk 0:00:45.4]} 27. Re7 {[%clk 0:00:38.7]} 27... Rf7 {[%clk
0:00:42.8]} 28. Rxf7 {[%clk 0:00:36]} 28... Kxf7 {[%clk 0:00:42.6]} 29. Rd7+
{[%clk 0:00:36.8]} 29... Ke6 {[%clk 0:00:33.7]} 30. Rd6+ {[%clk 0:00:36.6]}
30... Ke7 {[%clk 0:00:20.6]} 31. Nf4 {[%clk 0:00:36.8]} 31... Rc8 {[%clk
0:00:16.5]} 32. Nxg6+ {[%clk 0:00:31.2]} 32... Ke8 {[%clk 0:00:16.8]} 33. Rxf6
{[%clk 0:00:20.6]} 33... Rxc5 {[%clk 0:00:16.8]} 34. Rf8+ {[%clk 0:00:16.8]}
34... Kd7 {[%clk 0:00:16.4]} 35. Rf7+ {[%clk 0:00:17.3]} 35... Kc8 {[%clk
0:00:15.4]} 36. Ne7+ {[%clk 0:00:17.9]} 36... Kb8 {[%clk 0:00:15.1]} 37. Nf5
{[%clk 0:00:18.5]} 37... c3 {[%clk 0:00:14.8]} 38. Nd4 {[%clk 0:00:16.2]} 38...
c2 {[%clk 0:00:14.2]} 39. Nxc2 {[%clk 0:00:17]} 39... Rxc2+ {[%clk 0:00:14.4]}
40. Kg3 {[%clk 0:00:17.9]} 40... Rc5 {[%clk 0:00:13.3]} 41. Kf4 {[%clk
0:00:16.5]} 41... a5 {[%clk 0:00:12.5]} 42. g4 {[%clk 0:00:16.8]} 42... hxg4
{[%clk 0:00:11.6]} 43. fxg4 {[%clk 0:00:17.7]} 43... Rc4+ {[%clk 0:00:11.9]} 44.
Kg5 {[%clk 0:00:18.3]} 44... Bc8 {[%clk 0:00:12]} 45. Rf4 {[%clk 0:00:17.6]}
45... Rxf4 {[%clk 0:00:11.3]} 46. Kxf4 {[%clk 0:00:18.5]} 46... b4 {[%clk
0:00:11.8]} 47. axb4 {[%clk 0:00:19.2]} 47... a4 {[%clk 0:00:10.6]} 48. h5
{[%clk 0:00:18.8]} 48... a3 {[%clk 0:00:10.7]} 49. h6 {[%clk 0:00:19.5]} 49...
a2 {[%clk 0:00:10.8]} 50. h7 {[%clk 0:00:19.8]} 50... a1=Q {[%clk 0:00:11]} 51.
g5 {[%clk 0:00:19.8]} 51... Qd4+ {[%clk 0:00:07.8]} 52. Kf3 {[%clk 0:00:18.4]}
52... Bf5 {[%clk 0:00:07.7]} 0-1